fUSD/lending_fUSD_20240404
["ID","MTS","AMOUNT","RATE_DAILY","PERIOD"]
[321434562,1712190642823,-1000.0,0.0004067,3]
[321434563,1712190642832,-1000.0,0.0004067,3]
[321434564,1712190642842,-400.0,0.0004067,3]
[321434565,1712190642851,-1000.0,0.0004067,3]
[321434566,1712190642860,-400.0,0.0004067,3]
[321434567,1712190642869,-1000.0,0.0004068,17]
[321434568,1712190642878,-1000.0,0.0004068,17]
[321434569,1712190642888,-195.0,0.00040685,2]
[321434570,1712190642898,-1000.0,0.000407,17]
[321434571,1712190642907,-1000.0,0.000407,17]
[321434572,1712190642917,-936.810647,0.00040742,14]
[321434573,1712190642926,-2100.0,0.00040742,14]
[321434574,1712190642935,-1828.54434568,0.00040742,10]
[321434575,1712190642945,-255.9583516,0.00040742,30]
[321434576,1712190642954,-816.39859742,0.00040742,30]
[321434577,1712190642964,-776.06740442,0.00040742,4]
[321434578,1712190642973,-213.38147942,0.00040742,30]
[321434579,1712190642983,-389.32561534,0.00040742,15]
[321434581,1712190642993,-175.23267945,0.00040742,2]
[321434582,1712190643003,-3352.54061562,0.00040742,4]
[321434583,1712190643013,-151.0,0.00040742,14]
[321434584,1712190643023,-200.0,0.00040742,2]
[321434585,1712190643036,-2391.03675158,0.00040743,2]
[321434586,1712190643045,-4523.85877745,0.00040743,15]
[321434587,1712190643055,-4881.96419542,0.00040743,3]
[321434588,1712190643066,-338.15150351,0.00040743,2]
[321434589,1712190643075,-179.36207103,0.00040743,7]
[321434590,1712190643085,-1572.75867537,0.00040743,2]
[321434591,1712190643094,-221.38993663,0.00040743,2]
[321434592,1712190643103,-373.55229766,0.00040743,2]
[321434593,1712190643113,-1476.53586266,0.00040743,2]
[321434594,1712190643125,-7159.53136901,0.00040743,2]
[321434595,1712190643136,-159.24259359,0.00040743,2]
[321434596,1712190643147,-175.44495337,0.00040743,2]
[321434597,1712190643157,-844.58261289,0.00040743,2]
[321434598,1712190643167,-185.3802717,0.00040743,2]
[321434599,1712190643176,-841.16506851,0.00040743,2]
[321434600,1712190643185,-478.39628654,0.00040743,2]
[321434601,1712190643195,-2487.32836811,0.00040743,10]
[321434602,1712190643204,-14346.83831807,0.00040743,3]
[321434603,1712190643214,-643.0,0.00040743,2]
[321434604,1712190643223,-4000.0,0.00040743,3]
[321434605,1712190643232,-942.37101421,0.00040743,2]
[321434606,1712190643242,-6020.36300506,0.00040743,7]
[321434607,1712190643253,-556.61570855,0.00040743,2]
[321434608,1712190643263,-4365.01325498,0.00040743,7]
[321434609,1712190643273,-169.6118067,0.00040743,2]
[321434610,1712190643283,-500.0,0.00040743,2]
[321434611,1712190643292,-550.0,0.00040743,2]
[321434612,1712190643303,-979.29993071,0.00040743,2]
[321434613,1712190643312,-499.999999,0.00040743,2]
[321434614,1712190643322,-500.0,0.00040743,2]
[321434615,1712190643331,-547.47525671,0.00040743,2]
[321434616,1712190643341,-150.0,0.00040743,2]
[321434617,1712190643350,-634.94232582,0.00040743,2]
[321434618,1712190643359,-608.99474061,0.00040743,2]
[321434619,1712190643369,-208.81602519,0.00040743,2]
[321434620,1712190643378,-15928.58441287,0.00040743,7]
[321434621,1712190643388,-436.90124008,0.00040743,2]
[321434622,1712190643398,-563.30598829,0.00040743,2]
[321434623,1712190643408,-234.02174598,0.00040743,2]
[321434624,1712190643418,-524.03350757,0.00040743,2]
[321434625,1712190643427,-887.13764828,0.00040743,2]
[321434626,1712190643437,-468.17560273,0.00040743,2]
[321434627,1712190643446,-384.75447235,0.00040743,2]
[321434628,1712190643455,-240.28754514,0.00040743,2]
[321434629,1712190643465,-8713.40982025,0.00040743,14]
[321434630,1712190643475,-316.68333762,0.00040743,2]
[321434631,1712190643484,-532.49601998,0.00040743,2]
[321434632,1712190643494,-1490.73548226,0.00040743,7]
[321434633,1712190643503,-526.61689502,0.00040743,5]
[321434634,1712190643513,-354.22389253,0.00040743,2]
[321434635,1712190643522,-592.14621856,0.00040743,2]
[321434636,1712190643531,-52677.99808843,0.00040743,7]
[321434637,1712190643541,-34911.50524502,0.00040743,2]
[321434638,1712190643550,-138050.15284922,0.00040743,2]
[321434639,1712190643559,-155.4904952,0.00040743,2]
[321434640,1712190643569,-18956.65677176,0.00040743,3]
[321434641,1712190643579,-3836.92855936,0.00040743,3]
[321434642,1712190643589,-337.35937306,0.00040743,2]
[321434643,1712190643598,-594.76918364,0.00040743,20]
[321434644,1712190643608,-407.0,0.00040743,2]
[321434645,1712190643617,-214.07977406,0.00040743,2]
[321434646,1712190643627,-764.24894133,0.00040743,2]
[321434647,1712190643636,-150.0,0.00040743,2]
[321434648,1712190643646,-150.0,0.00040743,2]
[321434649,1712190643655,-200.0,0.00040743,2]
[321434650,1712190643665,-155.0,0.00040743,2]
[321434651,1712190643675,-93184.0,0.00040743,4]
[321434652,1712190643684,-3806.0,0.00040743,4]
[321434653,1712190643695,-151.0,0.00040743,14]
[321434654,1712190643705,-151.0,0.00040743,14]
[321434655,1712190643714,-151.0,0.00040743,14]
[321434656,1712190643724,-151.0,0.00040743,14]
[321434657,1712190643733,-1117.8,0.00040767,15]
[321434658,1712190643743,-11004.51,0.00040822,2]
[321434659,1712190643753,-238.60921491,0.000409,51]
[321434660,1712190643762,-200.0,0.00040986,7]
[321434661,1712190643772,-700.0,0.00041,3]
[321434662,1712190643781,-1153.99,0.00041,7]
[321434663,1712190643791,-600.0,0.00041,42]
[321434664,1712190643801,-150.29,0.00041,2]
[321434665,1712190643810,-150.29,0.00041,2]
[321434666,1712190643820,-150.29,0.00041,2]
[321434667,1712190643830,-150.29,0.00041,2]
[321434668,1712190643839,-150.29,0.00041,2]
[321434669,1712190643849,-150.29,0.00041,2]
[321434670,1712190643858,-150.29,0.00041,2]
[321434671,1712190643868,-150.29,0.00041,2]
[321434672,1712190643877,-150.29,0.00041,2]
[321434673,1712190643887,-150.29,0.00041,2]
[321434674,1712190643896,-150.29,0.00041,2]
[321434675,1712190643906,-150.29,0.00041,2]
[321434676,1712190643915,-150.29,0.00041,2]
[321434677,1712190643924,-150.29,0.00041,2]
[321434678,1712190643933,-150.29,0.00041,2]
[321434679,1712190643943,-150.29,0.00041,2]
[321434680,1712190643953,-150.29,0.00041,2]
[321434681,1712190643963,-150.29,0.00041,2]
[321434682,1712190643972,-150.29,0.00041,2]
[321434683,1712190643981,-150.29,0.00041,2]
[321434684,1712190643991,-150.29,0.00041,2]
[321434685,1712190644000,-150.29,0.00041,2]
[321434686,1712190644009,-150.29,0.00041,2]
[321434687,1712190644019,-150.29,0.00041,2]
[321434688,1712190644028,-150.29,0.00041,2]
[321434689,1712190644038,-150.29,0.00041,2]
[321434690,1712190644051,-150.29,0.00041,2]
[321434691,1712190644060,-150.29,0.00041,2]
[321434692,1712190644070,-150.29,0.00041,2]
[321434693,1712190644080,-150.29,0.00041,2]
[321434694,1712190644090,-150.29,0.00041,2]
[321434695,1712190644100,-150.29,0.00041,2]
[321434696,1712190644110,-150.29,0.00041,2]
[321434697,1712190644120,-150.29,0.00041,2]
[321434698,1712190644130,-150.29,0.00041,2]
[321434699,1712190644140,-150.29,0.00041,2]
[321434700,1712190644150,-150.29,0.00041,2]
[321434701,1712190644159,-150.29,0.00041,2]
[321434702,1712190644169,-150.29,0.00041,2]
[321434703,1712190644179,-150.29,0.00041,2]
[321434704,1712190644188,-150.29,0.00041,2]
[321434705,1712190644198,-150.29,0.00041,2]
[321434706,1712190644207,-150.29,0.00041,2]
[321434707,1712190644216,-150.29,0.00041,2]
[321434708,1712190644225,-150.29,0.00041,2]
[321434709,1712190644235,-150.29,0.00041,2]
[321434710,1712190644244,-150.29,0.00041,2]
[321434711,1712190644254,-150.29,0.00041,2]
[321434712,1712190644263,-150.29,0.00041,2]
[321434713,1712190644273,-150.29,0.00041,2]
[321434714,1712190644283,-150.29,0.00041,2]
[321434715,1712190644292,-150.0,0.00041073,120]
[321434716,1712190644302,-995.74,0.0004108,2]
[321434717,1712190644311,-1000.0,0.00041096,5]
[321434718,1712190644322,-1000.0,0.00041096,5]
[321434719,1712190644331,-1000.0,0.00041096,5]
[321434720,1712190644340,-1000.0,0.00041096,5]
[321434721,1712190644350,-1000.0,0.00041096,5]
[321434722,1712190644358,-1000.0,0.00041096,5]
[321434723,1712190644368,-1000.0,0.00041096,5]
[321434724,1712190644377,-1000.0,0.00041096,5]
[321434725,1712190644385,-1000.0,0.00041096,5]
[321434726,1712190644394,-792.0,0.00041096,5]
[321434727,1712190644403,-1000.0,0.00041096,5]
[321434728,1712190644413,-1000.0,0.00041096,5]
[321434729,1712190644423,-1000.0,0.00041096,5]
[321434730,1712190644433,-1000.0,0.00041096,5]
[321434731,1712190644442,-1000.0,0.00041096,5]
[321434732,1712190644452,-1000.0,0.00041096,5]
[321434733,1712190644462,-1000.0,0.00041096,5]
[321434734,1712190644471,-1000.0,0.00041096,5]
[321434735,1712190644481,-1000.0,0.00041096,5]
[321434736,1712190644490,-1000.0,0.00041096,5]
[321434737,1712190644569,-1000.0,0.00041096,5]
[321434738,1712190644578,-1000.0,0.00041096,5]
[321434739,1712190644587,-1000.0,0.00041096,5]
[321434740,1712190644596,-1000.0,0.00041096,5]
[321434741,1712190644605,-1000.0,0.00041096,5]
[321434742,1712190644614,-1000.0,0.00041096,5]
[321434743,1712190644623,-1000.0,0.00041096,5]
[321434744,1712190644632,-1000.0,0.00041096,5]
[321434745,1712190644641,-1000.0,0.00041096,5]
[321434746,1712190644650,-1000.0,0.00041096,5]
[321434747,1712190644659,-1000.0,0.00041096,5]
[321434748,1712190644668,-1000.0,0.00041096,5]
[321434749,1712190644677,-1000.0,0.00041096,5]
[321434750,1712190644687,-1000.0,0.00041096,5]
[321434751,1712190644695,-1000.0,0.00041096,5]
[321434752,1712190644705,-1000.0,0.00041096,5]
[321434753,1712190644713,-1000.0,0.00041096,5]
[321434754,1712190644723,-1000.0,0.00041096,5]
[321434755,1712190644732,-1000.0,0.00041096,5]
[321434756,1712190644742,-1000.0,0.00041096,5]
[321434757,1712190644752,-1000.0,0.00041096,5]
[321434758,1712190644762,-1000.0,0.00041096,5]
[321434759,1712190644771,-1000.0,0.00041096,5]
[321434760,1712190644780,-1000.0,0.00041096,5]
[321434761,1712190644788,-1000.0,0.00041096,5]
[321434762,1712190644797,-1000.0,0.00041096,5]
[321434763,1712190644806,-1000.0,0.00041096,5]
[321434764,1712190644815,-1000.0,0.00041096,5]
[321434765,1712190644825,-1000.0,0.00041096,5]
[321434766,1712190644835,-1000.0,0.00041096,5]
[321434767,1712190644845,-1000.0,0.00041096,5]
[321434768,1712190644854,-1000.0,0.00041096,5]
[321434769,1712190644864,-1000.0,0.00041096,5]
[321434770,1712190644873,-1000.0,0.00041096,5]
[321434771,1712190644882,-1000.0,0.00041096,5]
[321434772,1712190644891,-1000.0,0.00041096,5]
[321434773,1712190644901,-1000.0,0.00041096,5]
[321434774,1712190644910,-1000.0,0.00041096,5]
[321434775,1712190644919,-1000.0,0.00041096,5]
[321434776,1712190644928,-1000.0,0.00041096,5]
[321434777,1712190644937,-1000.0,0.00041096,5]
[321434778,1712190644947,-1000.0,0.00041096,5]
[321434779,1712190644957,-1000.0,0.00041096,5]
[321434780,1712190644966,-1000.0,0.00041096,5]
[321434781,1712190644975,-1000.0,0.00041096,5]
[321434782,1712190644984,-1000.0,0.00041096,5]
[321434783,1712190644994,-1000.0,0.00041096,5]
[321434784,1712190645005,-1000.0,0.00041096,5]
[321434785,1712190645016,-1000.0,0.00041096,5]
[321434786,1712190645026,-1000.0,0.00041096,5]
[321434787,1712190645037,-1000.0,0.00041096,5]
[321434788,1712190645047,-1000.0,0.00041096,5]
[321434789,1712190645056,-1000.0,0.00041096,5]
[321434790,1712190645065,-1000.0,0.00041096,5]
[321434791,1712190645075,-1000.0,0.00041096,5]
[321434792,1712190645086,-1000.0,0.00041096,5]
[321434793,1712190645095,-1000.0,0.00041096,5]
[321434794,1712190645104,-1000.0,0.00041096,5]
[321434795,1712190645114,-1000.0,0.00041096,5]
[321434796,1712190645123,-1000.0,0.00041096,5]
[321434797,1712190645133,-1000.0,0.00041096,5]
[321434798,1712190645143,-1000.0,0.00041096,5]
[321434799,1712190645153,-1000.0,0.00041096,5]
[321434800,1712190645162,-1000.0,0.00041096,5]
[321434801,1712190645172,-1000.0,0.00041096,5]
[321434802,1712190645182,-1000.0,0.00041096,5]
[321434803,1712190645191,-1000.0,0.00041096,5]
[321434804,1712190645200,-1000.0,0.00041096,5]
[321434805,1712190645211,-1000.0,0.00041096,5]
[321434806,1712190645220,-1000.0,0.00041096,5]
[321434807,1712190645229,-1000.0,0.00041096,5]
[321434808,1712190645238,-1000.0,0.00041096,5]
[321434809,1712190645247,-1000.0,0.00041096,5]
[321434810,1712190645257,-1000.0,0.00041096,5]
[321434811,1712190645266,-1000.0,0.00041096,5]
[321434812,1712190645275,-1000.0,0.00041096,5]
[321434813,1712190645285,-1000.0,0.00041096,5]
[321434814,1712190645295,-1000.0,0.00041096,5]
[321434815,1712190645304,-1000.0,0.00041096,5]
[321434816,1712190645314,-1000.0,0.00041096,5]
[321434817,1712190645324,-183.0,0.00041096,2]
[321434818,1712190645333,-936.810647,0.00041096,14]
[321434819,1712190645343,-151.0,0.00041096,14]
[321434820,1712190645352,-3000.0,0.000411,2]
[321434821,1712190645361,-150.0,0.00041137,120]
[321434822,1712190645371,-1074.65,0.000412,7]
[321434823,1712190645380,-1102.04,0.000412,7]
[321434824,1712190645389,-304.12,0.0004121,2]
[321434825,1712190645399,-152.0,0.00041244,4]
[321434826,1712190645408,-200.0,0.00041396,7]
[321434827,1712190645418,-150.0,0.00041528,2]
[321434828,1712190645427,-150.0,0.000416,44]
[321434829,1712190645437,-995.74,0.0004168,2]
[321434830,1712190645446,-150.0,0.00041697,120]
[321434831,1712190645456,-1072.0,0.000418,31]
[321434832,1712190645466,-200.0,0.0004181,7]
[321434833,1712190645475,-304.12,0.0004181,2]
[321434834,1712190645485,-150.0,0.00041929,120]
[321434835,1712190645495,-600.0,0.00042,43]
[321434836,1712190645504,-894.0,0.00042,30]
[321434837,1712190645513,-996.82,0.00042087,2]
[321434838,1712190645523,-995.74,0.0004216,2]
[321434839,1712190645532,-200.0,0.00042228,7]
[321434840,1712190645542,-1072.0,0.000423,32]
[321434841,1712190645553,-150.0,0.00042394,2]
[321434842,1712190645562,-304.12,0.0004242,2]
[321434843,1712190645573,-200.0,0.000426,56]
[321434844,1712190645582,-995.74,0.0004276,2]
[321434845,1712190645591,-150.0,0.00042769,120]
[321434846,1712190645602,-1072.0,0.000428,32]
[321434847,1712190645612,-721.41904155,0.00043,4]
[321434848,1712190645622,-750.0,0.00043,3]
[321434849,1712190645631,-600.0,0.00043,44]
[321434850,1712190645641,-304.12,0.0004302,2]
[321434851,1712190645650,-3519.0,0.00043107,10]
[321434852,1712190645660,-995.74,0.0004324,2]
[321434853,1712190645670,-150.0,0.00043259,2]
[321434854,1712190645679,-1072.0,0.000433,33]
[321434855,1712190645688,-1153.99,0.000433,7]
[321434856,1712190645697,-152.0,0.00043368,5]
[321434857,1712190645707,-1074.65,0.000434,7]
[321434858,1712190645716,-1102.04,0.000434,7]
[321434859,1712190645725,-1117.8,0.00043507,15]
[321434860,1712190645735,-304.12,0.0004363,2]
[321434861,1712190645744,-150.0,0.0004378,53]
[321434862,1712190645753,-1072.0,0.000438,33]
[321434863,1712190645763,-3000.0,0.000438,2]
[321434864,1712190645772,-666.0,0.00043835,2]
[321434865,1712190645781,-441.83,0.00043836,2]
[321434866,1712190645791,-995.74,0.0004384,2]
[321434867,1712190645800,-600.0,0.00044,45]
[321434868,1712190645809,-691.90997456,0.00044,4]
[321434869,1712190645818,-2929.285009,0.00044,44]
[321434870,1712190645827,-500.0,0.00044053,4]
[321434871,1712190645837,-500.0,0.00044053,4]
[321434872,1712190645846,-500.0,0.00044053,4]
[321434873,1712190645855,-500.0,0.00044053,4]
[321434874,1712190645864,-500.0,0.00044053,4]
[321434875,1712190645874,-500.0,0.00044053,4]
[321434876,1712190645883,-500.0,0.00044053,4]
[321434877,1712190645892,-500.0,0.00044053,4]
[321434878,1712190645902,-500.0,0.00044053,4]
[321434879,1712190645911,-500.0,0.00044053,4]
[321434880,1712190645921,-500.0,0.00044053,4]
[321434881,1712190645930,-500.0,0.00044053,4]
[321434882,1712190645939,-500.0,0.00044053,4]
[321434883,1712190645949,-500.0,0.00044053,4]
[321434884,1712190645958,-500.0,0.00044053,4]
[321434885,1712190645968,-500.0,0.00044053,4]
[321434886,1712190645977,-500.0,0.00044053,4]
[321434887,1712190645986,-500.0,0.00044053,4]
[321434888,1712190645996,-500.0,0.00044053,4]
[321434889,1712190646005,-312.0,0.00044053,4]
[321434890,1712190646015,-150.0,0.00044124,2]
[321434891,1712190646025,-304.12,0.0004423,2]
[321434892,1712190646036,-1072.0,0.000443,34]
[321434893,1712190646049,-995.74,0.0004432,2]
[321434894,1712190646058,-996.82,0.00044351,2]
[321434895,1712190646068,-1072.0,0.000448,34]
[321434896,1712190646078,-304.12,0.0004484,2]
[321434897,1712190646089,-240.0,0.0004488,30]
[321434898,1712190646098,-400.0,0.0004488,30]
[321434899,1712190646108,-2628.697384,0.0004488,30]
[321434900,1712190646120,-208.268147,0.0004488,30]
[321434901,1712190646130,-173.130722,0.0004488,30]
[321434902,1712190646139,-160.0,0.0004488,30]
[321434903,1712190646148,-200.781815,0.0004488,30]
[321434904,1712190646158,-191.585948,0.0004488,30]
[321434905,1712190646167,-995.74,0.0004492,2]
[321434906,1712190646177,-5000.0,0.00044986,4]
[321434907,1712190646186,-150.0,0.00044989,2]
[321434908,1712190646196,-328.38424403,0.00045,4]
[321434909,1712190646206,-3249.53832177,0.00045,30]
[321434910,1712190646216,-723.44747167,0.00045,30]
[321434911,1712190646225,-155.0,0.00045,14]
[321434912,1712190646234,-800.0,0.00045,3]
[321434913,1712190646244,-1200.0,0.00045,46]
[321434914,1712190646253,-150.0,0.0004511,120]
[321434915,1712190646263,-156.25,0.00045125,2]
[321434916,1712190646273,-195.0,0.00045205,2]
[321434917,1712190646282,-1072.0,0.000453,35]
[321434918,1712190646292,-1153.99,0.000453,7]
[321434919,1712190646302,-995.74,0.000454,2]
[321434920,1712190646312,-304.12,0.0004544,2]
[321434921,1712190646322,-240.0,0.00045441,30]
[321434922,1712190646331,-400.0,0.00045441,30]
[321434923,1712190646341,-2628.697384,0.00045441,30]
[321434924,1712190646351,-208.268147,0.00045441,30]
[321434925,1712190646361,-160.0,0.00045441,30]
[321434926,1712190646370,-152.0,0.00045493,6]
[321434927,1712190646380,-1102.04,0.000455,7]
[321434928,1712190646390,-1074.65,0.000455,7]
[321434929,1712190646399,-150.0,0.000455,8]
[321434930,1712190646409,-1072.0,0.000458,35]
[321434931,1712190646418,-150.0,0.00045854,2]
[321434932,1712190646428,-151.0,0.00045923,7]
[321434933,1712190646437,-309.92186674,0.00046,3]
[321434934,1712190646447,-1612.05385673,0.00046,4]
[321434935,1712190646457,-600.0,0.00046,47]
[321434936,1712190646467,-1500.00323975,0.00046,10]
[321434937,1712190646477,-150.0,0.00046,8]
[321434938,1712190646486,-995.74,0.00046,2]
[321434939,1712190646496,-240.0,0.00046002,30]
[321434940,1712190646507,-400.0,0.00046002,30]
[321434941,1712190646517,-2628.697384,0.00046002,30]
[321434942,1712190646526,-208.268147,0.00046002,30]
[321434943,1712190646536,-160.0,0.00046002,30]
[321434944,1712190646545,-304.12,0.0004605,2]
[321434945,1712190646555,-456.58,0.00046057,120]
[321434946,1712190646564,-2033.65,0.00046143,120]
[321434947,1712190646575,-160.0,0.00046154,5]
[321434948,1712190646585,-160.0,0.00046163,5]
[321434949,1712190646595,-160.0,0.00046172,5]
[321434950,1712190646604,-160.0,0.00046181,5]
[321434951,1712190646614,-1117.8,0.00046247,15]
[321434952,1712190646624,-1072.0,0.000463,36]
[321434953,1712190646634,-995.74,0.0004648,2]
[321434954,1712190646643,-150.0,0.0004649,58]
[321434955,1712190646654,-150.0,0.000465,8]
[321434956,1712190646664,-240.0,0.00046563,30]
[321434957,1712190646673,-400.0,0.00046563,30]
[321434958,1712190646682,-2628.697384,0.00046563,30]
[321434959,1712190646692,-208.268147,0.00046563,30]
[321434960,1712190646701,-160.0,0.00046563,30]
[321434961,1712190646710,-666.0,0.00046575,2]
[321434962,1712190646720,-150.0,0.00046579,120]
[321434963,1712190646730,-186.34437692,0.00046597,2]
[321434964,1712190646739,-3000.0,0.000466,2]
[321434965,1712190646749,-996.82,0.00046615,2]
[321434966,1712190646759,-304.12,0.0004665,2]
[321434967,1712190646770,-150.0,0.00046689,120]
[321434968,1712190646779,-150.0,0.0004672,2]
[321434969,1712190646789,-1072.0,0.000468,37]
[321434970,1712190646799,-150.0,0.00046918,120]
[321434971,1712190646808,-850.0,0.00047,3]
[321434972,1712190646818,-600.0,0.00047,48]
[321434973,1712190646828,-1662.79042077,0.00047,120]
[321434974,1712190646837,-1000.0,0.00047,10]
[321434975,1712190646847,-150.0,0.00047,9]
[321434976,1712190646856,-995.74,0.0004708,2]
[321434977,1712190646866,-240.0,0.00047124,30]
[321434978,1712190646875,-400.0,0.00047124,30]
[321434979,1712190646885,-2628.697384,0.00047124,30]
[321434980,1712190646894,-208.268147,0.00047124,30]
[321434981,1712190646904,-160.0,0.00047124,30]
[321434982,1712190646914,-304.12,0.0004726,2]
[321434983,1712190646924,-1667.408695,0.000473,37]
[321434984,1712190646934,-150.0,0.00047375,120]
[321434985,1712190646944,-150.0,0.00047389,120]
[321434986,1712190646953,-500.0,0.00047396,30]
[321434987,1712190646962,-35468.5489006,0.00047397,7]
[321434988,1712190646972,-904.55,0.00047477,2]
[321434989,1712190646981,-904.55,0.00047477,2]
[321434990,1712190646990,-904.55,0.00047477,2]
[321434991,1712190646999,-1102.04,0.000475,7]
[321434992,1712190647009,-1074.65,0.000475,7]
[321434993,1712190647018,-150.0,0.000475,9]
[321434994,1712190647027,-995.74,0.0004756,2]
[321434995,1712190647038,-1269.79,0.00047579,2]
[321434996,1712190647050,-150.0,0.00047585,2]
[321434997,1712190647060,-150.0,0.00047614,2]
[321434998,1712190647071,-833.82,0.00047614,2]
[321434999,1712190647081,-150.0,0.00047614,2]
[321435000,1712190647091,-519.19,0.00047614,2]
[321435001,1712190647101,-159.38,0.00047614,2]
[321435002,1712190647110,-152.34,0.00047614,2]
[321435003,1712190647120,-161.88,0.00047614,2]
[321435004,1712190647130,-238.9,0.00047614,2]
[321435005,1712190647139,-348.46,0.00047614,2]
[321435006,1712190647149,-150.0,0.00047614,2]
[321435007,1712190647158,-161.88,0.00047614,2]
[321435008,1712190647168,-150.0,0.00047614,2]
[321435009,1712190647177,-150.0,0.00047614,2]
[321435010,1712190647186,-519.19,0.00047614,2]
[321435011,1712190647195,-348.46,0.00047614,2]
[321435012,1712190647205,-519.19,0.00047614,2]
[321435013,1712190647215,-150.0,0.00047614,2]
[321435014,1712190647225,-150.0,0.00047614,2]
[321435015,1712190647234,-329.74,0.00047614,2]
[321435016,1712190647244,-150.0,0.00047614,2]
[321435017,1712190647253,-161.88,0.00047614,2]
[321435018,1712190647262,-150.0,0.00047614,2]
[321435019,1712190647271,-152.0,0.00047618,7]
[321435020,1712190647281,-1153.99,0.000477,7]
[321435021,1712190647290,-156.25,0.0004775,2]
[321435022,1712190647299,-153.63115965,0.00047815,30]
[321435023,1712190647309,-388.42808272,0.00047834,30]
[321435024,1712190647318,-190.53034933,0.00047852,30]
[321435025,1712190647330,-304.12,0.0004786,2]
[321435026,1712190647340,-190.53034933,0.00047877,30]
[321435027,1712190647350,-155.78714103,0.00047881,30]
[321435028,1712190647359,-203.19613583,0.00047908,30]
[321435029,1712190647368,-602.12417404,0.00047923,30]
[321435030,1712190647378,-602.12417404,0.00047926,30]
[321435031,1712190647387,-500.0,0.00047944,30]
[321435032,1712190647397,-441.83,0.00047945,2]
[321435033,1712190647406,-157.33985921,0.00047963,30]
[321435034,1712190647416,-8507.35906437,0.00047989,23]
[321435035,1712190647426,-5000.0,0.00047989,25]
[321435036,1712190647435,-5000.0,0.00047989,28]
[321435037,1712190647444,-5000.0,0.00047989,24]
[321435038,1712190647454,-531.0,0.00048,120]
[321435039,1712190647464,-507.01542111,0.00048,120]
[321435040,1712190647475,-151.0,0.00048,120]
[321435041,1712190647485,-600.0,0.00048,49]
[321435042,1712190647495,-1041.56,0.00048,10]
[321435043,1712190647504,-392.200373,0.00048,25]
[321435044,1712190647514,-150.0,0.00048,9]
[321435045,1712190647524,-154.04196447,0.00048007,30]
[321435046,1712190647533,-291.67523411,0.0004802,30]
[321435047,1712190647543,-203.19613583,0.00048024,30]
[321435048,1712190647552,-509.54232732,0.00048061,30]
[321435049,1712190647562,-155.78714103,0.0004807,30]
[321435050,1712190647574,-509.54232732,0.00048105,30]
[321435051,1712190647583,-150.0,0.00048106,120]
[321435052,1712190647593,-155.01816655,0.00048116,30]
[321435053,1712190647603,-157.33985921,0.0004814,30]
[321435054,1712190647612,-154.04196447,0.00048158,30]
[321435055,1712190647622,-995.74,0.0004816,2]
[321435056,1712190647633,-150.0,0.00048211,120]
[321435057,1712190647643,-197.38677701,0.00048291,30]
[321435058,1712190647654,-388.42808272,0.000483,30]
[321435059,1712190647664,-203.19613583,0.00048306,30]
[321435060,1712190647675,-291.67523411,0.00048353,30]
[321435061,1712190647685,-153.54975412,0.00048368,30]
[321435062,1712190647695,-150.0,0.00048383,120]